Workbook

Sheet Cover
B3: Excel + VBA
B4: für Controller
B7: Kapitel | C7: 4
B8: Thema | C8: Methoden der Datenaufbereitung
B10: Inhalt | C10: SVERWEIS + WAHL
C11: Zusammenstellung von Daten
C12: mit SVERWEIS + WAHL
B18: Autor | C18: Harald Nahrstedt
B19: Datum | C19: 2019-01-01
B20: Version | C20: 1.0
B23: Springer Verlag

Sheet Personalkosten
A1: Produkt | B1: Bauteil | C1: Anzahl | D1: Std | E1: Lohn | F1: MNr | G1: WNr | H1: MSatz | I1: LKosten | J1: MKosten | K1: GKosten
A2: A | B2: 1 | C2: 7 | D2: 3.5 | E2: 29.8 | F2: 6 | G2: 1 | H2: =VLOOKUP(Personalkosten!$F2&Personalkosten!$G2,CHOOSE({1,2},Maschinen[MNr]&Maschinen[WNr],Maschinen[Stundensatz]),2,0) -> 41.28 | I2: =Tabelle1[Std]*Tabelle1[Lohn] -> 104.3 | J2: =Tabelle1[Std]*Tabelle1[MSatz] -> 144.48 | K2: =Tabelle1[LKosten]+Tabelle1[MKosten] -> 248.78
A3: A | B3: 2 | C3: 1 | D3: 4.3 | E3: 69.52 | F3: 1 | G3: 2 | H3: =VLOOKUP(Personalkosten!$F3&Personalkosten!$G3,CHOOSE({1,2},Maschinen[MNr]&Maschinen[WNr],Maschinen[Stundensatz]),2,0) -> 33.52 | I3: =Tabelle1[Std]*Tabelle1[Lohn] -> 298.936 | J3: =Tabelle1[Std]*Tabelle1[MSatz] -> 144.136 | K3: =Tabelle1[LKosten]+Tabelle1[MKosten] -> 443.072
A4: A | B4: 1 | C4: 4 | D4: 2.5 | E4: 27.45 | F4: 5 | G4: 2 | H4: =VLOOKUP(Personalkosten!$F4&Personalkosten!$G4,CHOOSE({1,2},Maschinen[MNr]&Maschinen[WNr],Maschinen[Stundensatz]),2,0) -> 36.45 | I4: =Tabelle1[Std]*Tabelle1[Lohn] -> 68.625 | J4: =Tabelle1[Std]*Tabelle1[MSatz] -> 91.125 | K4: =Tabelle1[LKosten]+Tabelle1[MKosten] -> 159.75
A5: A | B5: 3 | C5: 2 | D5: 4.4 | E5: 76.31 | F5: 14 | G5: 1 | H5: =VLOOKUP(Personalkosten!$F5&Personalkosten!$G5,CHOOSE({1,2},Maschinen[MNr]&Maschinen[WNr],Maschinen[Stundensatz]),2,0) -> 53.4 | I5: =Tabelle1[Std]*Tabelle1[Lohn] -> 335.764 | J5: =Tabelle1[Std]*Tabelle1[MSatz] -> 234.96 | K5: =Tabelle1[LKosten]+Tabelle1[MKosten] -> 570.724
A6: A | B6: 4 | C6: 0 | D6: 6.9 | E6: 57.09 | F6: 16 | G6: 2 | H6: =VLOOKUP(Personalkosten!$F6&Personalkosten!$G6,CHOOSE({1,2},Maschinen[MNr]&Maschinen[WNr],Maschinen[Stundensatz]),2,0) -> 31.27 | I6: =Tabelle1[Std]*Tabelle1[Lohn] -> 393.921 | J6: =Tabelle1[Std]*Tabelle1[MSatz] -> 215.763 | K6: =Tabelle1[LKosten]+Tabelle1[MKosten] -> 609.684
A7: A | B7: 5 | C7: 17 | D7: 9.5 | E7: 85.88 | F7: 16 | G7: 2 | H7: =VLOOKUP(Personalkosten!$F7&Personalkosten!$G7,CHOOSE({1,2},Maschinen[MNr]&Maschinen[WNr],Maschinen[Stundensatz]),2,0) -> 31.27 | I7: =Tabelle1[Std]*Tabelle1[Lohn] -> 815.86 | J7: =Tabelle1[Std]*Tabelle1[MSatz] -> 297.065 | K7: =Tabelle1[LKosten]+Tabelle1[MKosten] -> 1112.925
A8: A | B8: 6 | C8: 1 | D8: 7.5 | E8: 79.51 | F8: 1 | G8: 1 | H8: =VLOOKUP(Personalkosten!$F8&Personalkosten!$G8,CHOOSE({1,2},Maschinen[MNr]&Maschinen[WNr],Maschinen[Stundensatz]),2,0) -> 31.25 | I8: =Tabelle1[Std]*Tabelle1[Lohn] -> 596.325 | J8: =Tabelle1[Std]*Tabelle1[MSatz] -> 234.375 | K8: =Tabelle1[LKosten]+Tabelle1[MKosten] -> 830.7
A9: A | B9: 7 | C9: 7 | D9: 4.8 | E9: 86.93 | F9: 15 | G9: 1 | H9: =VLOOKUP(Personalkosten!$F9&Personalkosten!$G9,CHOOSE({1,2},Maschinen[MNr]&Maschinen[WNr],Maschinen[Stundensatz]),2,0) -> 50.73 | I9: =Tabelle1[Std]*Tabelle1[Lohn] -> 417.264 | J9: =Tabelle1[Std]*Tabelle1[MSatz] -> 243.504 | K9: =Tabelle1[LKosten]+Tabelle1[MKosten] -> 660.768
A10: A | B10: 8 | C10: 19 | D10: 1.4 | E10: 27.68 | F10: 15 | G10: 1 | H10: =VLOOKUP(Personalkosten!$F10&Personalkosten!$G10,CHOOSE({1,2},Maschinen[MNr]&Maschinen[WNr],Maschinen[Stundensatz]),2,0) -> 50.73 | I10: =Tabelle1[Std]*Tabelle1[Lohn] -> 38.752 | J10: =Tabelle1[Std]*Tabelle1[MSatz] -> 71.022 | K10: =Tabelle1[LKosten]+Tabelle1[MKosten] -> 109.774
A11: A | B11: 9 | C11: 14 | D11: 2.8 | E11: 9.22 | F11: 14 | G11: 2 | H11: =VLOOKUP(Personalkosten!$F11&Personalkosten!$G11,CHOOSE({1,2},Maschinen[MNr]&Maschinen[WNr],Maschinen[Stundensatz]),2,0) -> 55.79 | I11: =Tabelle1[Std]*Tabelle1[Lohn] -> 25.816 | J11: =Tabelle1[Std]*Tabelle1[MSatz] -> 156.212 | K11: =Tabelle1[LKosten]+Tabelle1[MKosten] -> 182.028
A12: A | B12: 10 | C12: 2 | D12: 10.6 | E12: 57.02 | F12: 9 | G12: 1 | H12: =VLOOKUP(Personalkosten!$F12&Personalkosten!$G12,CHOOSE({1,2},Maschinen[MNr]&Maschinen[WNr],Maschinen[Stundensatz]),2,0) -> 58.17 | I12: =Tabelle1[Std]*Tabelle1[Lohn] -> 604.412 | J12: =Tabelle1[Std]*Tabelle1[MSatz] -> 616.602 | K12: =Tabelle1[LKosten]+Tabelle1[MKosten] -> 1221.014
A13: A | B13: 11 | C13: 3 | D13: 5.9 | E13: 98.69 | F13: 1 | G13: 2 | H13: =VLOOKUP(Personalkosten!$F13&Personalkosten!$G13,CHOOSE({1,2},Maschinen[MNr]&Maschinen[WNr],Maschinen[Stundensatz]),2,0) -> 33.52 | I13: =Tabelle1[Std]*Tabelle1[Lohn] -> 582.271 | J13: =Tabelle1[Std]*Tabelle1[MSatz] -> 197.768 | K13: =Tabelle1[LKosten]+Tabelle1[MKosten] -> 780.039
A14: A | B14: 12 | C14: 17 | D14: 18.7 | E14: 37.25 | F14: 17 | G14: 1 | H14: =VLOOKUP(Personalkosten!$F14&Personalkosten!$G14,CHOOSE({1,2},Maschinen[MNr]&Maschinen[WNr],Maschinen[Stundensatz]),2,0) -> 33.87 | I14: =Tabelle1[Std]*Tabelle1[Lohn] -> 696.575 | J14: =Tabelle1[Std]*Tabelle1[MSatz] -> 633.369 | K14: =Tabelle1[LKosten]+Tabelle1[MKosten] -> 1329.944
A15: A | B15: 13 | C15: 1 | D15: 10.5 | E15: 21.45 | F15: 8 | G15: 2 | H15: =VLOOKUP(Personalkosten!$F15&Personalkosten!$G15,CHOOSE({1,2},Maschinen[MNr]&Maschinen[WNr],Maschinen[Stundensatz]),2,0) -> 59.83 | I15: =Tabelle1[Std]*Tabelle1[Lohn] -> 225.225 | J15: =Tabelle1[Std]*Tabelle1[MSatz] -> 628.215 | K15: =Tabelle1[LKosten]+Tabelle1[MKosten] -> 853.44
A16: A | B16: 14 | C16: 2 | D16: 17.9 | E16: 1.57 | F16: 18 | G16: 1 | H16: =VLOOKUP(Personalkosten!$F16&Personalkosten!$G16,CHOOSE({1,2},Maschinen[MNr]&Maschinen[WNr],Maschinen[Stundensatz]),2,0) -> 62.29 | I16: =Tabelle1[Std]*Tabelle1[Lohn] -> 28.103 | J16: =Tabelle1[Std]*Tabelle1[MSatz] -> 1114.991 | K16: =Tabelle1[LKosten]+Tabelle1[MKosten] -> 1143.094
A17: A | B17: 15 | C17: 9 | D17: 3.8 | E17: 2.39 | F17: 5 | G17: 1 | H17: =VLOOKUP(Personalkosten!$F17&Personalkosten!$G17,CHOOSE({1,2},Maschinen[MNr]&Maschinen[WNr],Maschinen[Stundensatz]),2,0) -> 39.96 | I17: =Tabelle1[Std]*Tabelle1[Lohn] -> 9.082 | J17: =Tabelle1[Std]*Tabelle1[MSatz] -> 151.848 | K17: =Tabelle1[LKosten]+Tabelle1[MKosten] -> 160.93
A18: B | B18: 1 | C18: 17 | D18: 2.4 | E18: 96.02 | F18: 9 | G18: 2 | H18: =VLOOKUP(Personalkosten!$F18&Personalkosten!$G18,CHOOSE({1,2},Maschinen[MNr]&Maschinen[WNr],Maschinen[Stundensatz]),2,0) -> 55.76 | I18: =Tabelle1[Std]*Tabelle1[Lohn] -> 230.448 | J18: =Tabelle1[Std]*Tabelle1[MSatz] -> 133.824 | K18: =Tabelle1[LKosten]+Tabelle1[MKosten] -> 364.272
A19: B | B19: 2 | C19: 19 | D19: 6.7 | E19: 51.6 | F19: 12 | G19: 2 | H19: =VLOOKUP(Personalkosten!$F19&Personalkosten!$G19,CHOOSE({1,2},Maschinen[MNr]&Maschinen[WNr],Maschinen[Stundensatz]),2,0) -> 45.87 | I19: =Tabelle1[Std]*Tabelle1[Lohn] -> 345.72 | J19: =Tabelle1[Std]*Tabelle1[MSatz] -> 307.329 | K19: =Tabelle1[LKosten]+Tabelle1[MKosten] -> 653.049
A20: B | B20: 3 | C20: 0 | D20: 10.6 | E20: 20.37 | F20: 6 | G20: 1 | H20: =VLOOKUP(Personalkosten!$F20&Personalkosten!$G20,CHOOSE({1,2},Maschinen[MNr]&Maschinen[WNr],Maschinen[Stundensatz]),2,0) -> 41.28 | I20: =Tabelle1[Std]*Tabelle1[Lohn] -> 215.922 | J20: =Tabelle1[Std]*Tabelle1[MSatz] -> 437.568 | K20: =Tabelle1[LKosten]+Tabelle1[MKosten] -> 653.49
A21: B | B21: 4 | C21: 8 | D21: 4.8 | E21: 29.28 | F21: 2 | G21: 2 | H21: =VLOOKUP(Personalkosten!$F21&Personalkosten!$G21,CHOOSE({1,2},Maschinen[MNr]&Maschinen[WNr],Maschinen[Stundensatz]),2,0) -> 44.64 | I21: =Tabelle1[Std]*Tabelle1[Lohn] -> 140.544 | J21: =Tabelle1[Std]*Tabelle1[MSatz] -> 214.272 | K21: =Tabelle1[LKosten]+Tabelle1[MKosten] -> 354.816
A22: B | B22: 5 | C22: 14 | D22: 2.2 | E22: 16.38 | F22: 7 | G22: 1 | H22: =VLOOKUP(Personalkosten!$F22&Personalkosten!$G22,CHOOSE({1,2},Maschinen[MNr]&Maschinen[WNr],Maschinen[Stundensatz]),2,0) -> 21.42 | I22: =Tabelle1[Std]*Tabelle1[Lohn] -> 36.036 | J22: =Tabelle1[Std]*Tabelle1[MSatz] -> 47.124 | K22: =Tabelle1[LKosten]+Tabelle1[MKosten] -> 83.16
A23: B | B23: 6 | C23: 14 | D23: 10.1 | E23: 87.71 | F23: 9 | G23: 2 | H23: =VLOOKUP(Personalkosten!$F23&Personalkosten!$G23,CHOOSE({1,2},Maschinen[MNr]&Maschinen[WNr],Maschinen[Stundensatz]),2,0) -> 55.76 | I23: =Tabelle1[Std]*Tabelle1[Lohn] -> 885.871 | J23: =Tabelle1[Std]*Tabelle1[MSatz] -> 563.176 | K23: =Tabelle1[LKosten]+Tabelle1[MKosten] -> 1449.047
A24: B | B24: 7 | C24: 15 | D24: 1.4 | E24: 77.64 | F24: 13 | G24: 1 | H24: =VLOOKUP(Personalkosten!$F24&Personalkosten!$G24,CHOOSE({1,2},Maschinen[MNr]&Maschinen[WNr],Maschinen[Stundensatz]),2,0) -> 53.76 | I24: =Tabelle1[Std]*Tabelle1[Lohn] -> 108.696 | J24: =Tabelle1[Std]*Tabelle1[MSatz] -> 75.264 | K24: =Tabelle1[LKosten]+Tabelle1[MKosten] -> 183.96
A25: C | B25: 1 | C25: 2 | D25: 2.2 | E25: 13.07 | F25: 17 | G25: 1 | H25: =VLOOKUP(Personalkosten!$F25&Personalkosten!$G25,CHOOSE({1,2},Maschinen[MNr]&Maschinen[WNr],Maschinen[Stundensatz]),2,0) -> 33.87 | I25: =Tabelle1[Std]*Tabelle1[Lohn] -> 28.754 | J25: =Tabelle1[Std]*Tabelle1[MSatz] -> 74.514 | K25: =Tabelle1[LKosten]+Tabelle1[MKosten] -> 103.268
A26: C | B26: 2 | C26: 9 | D26: 19.8 | E26: 29.82 | F26: 11 | G26: 2 | H26: =VLOOKUP(Personalkosten!$F26&Personalkosten!$G26,CHOOSE({1,2},Maschinen[MNr]&Maschinen[WNr],Maschinen[Stundensatz]),2,0) -> 34.56 | I26: =Tabelle1[Std]*Tabelle1[Lohn] -> 590.436 | J26: =Tabelle1[Std]*Tabelle1[MSatz] -> 684.288 | K26: =Tabelle1[LKosten]+Tabelle1[MKosten] -> 1274.724
A27: C | B27: 3 | C27: 14 | D27: 7.8 | E27: 47.73 | F27: 3 | G27: 2 | H27: =VLOOKUP(Personalkosten!$F27&Personalkosten!$G27,CHOOSE({1,2},Maschinen[MNr]&Maschinen[WNr],Maschinen[Stundensatz]),2,0) -> 71.23 | I27: =Tabelle1[Std]*Tabelle1[Lohn] -> 372.294 | J27: =Tabelle1[Std]*Tabelle1[MSatz] -> 555.594 | K27: =Tabelle1[LKosten]+Tabelle1[MKosten] -> 927.888
A28: C | B28: 4 | C28: 8 | D28: 14.7 | E28: 13.95 | F28: 13 | G28: 2 | H28: =VLOOKUP(Personalkosten!$F28&Personalkosten!$G28,CHOOSE({1,2},Maschinen[MNr]&Maschinen[WNr],Maschinen[Stundensatz]),2,0) -> 53.21 | I28: =Tabelle1[Std]*Tabelle1[Lohn] -> 205.065 | J28: =Tabelle1[Std]*Tabelle1[MSatz] -> 782.187 | K28: =Tabelle1[LKosten]+Tabelle1[MKosten] -> 987.252
A29: C | B29: 5 | C29: 7 | D29: 6.9 | E29: 79.97 | F29: 5 | G29: 2 | H29: =VLOOKUP(Personalkosten!$F29&Personalkosten!$G29,CHOOSE({1,2},Maschinen[MNr]&Maschinen[WNr],Maschinen[Stundensatz]),2,0) -> 36.45 | I29: =Tabelle1[Std]*Tabelle1[Lohn] -> 551.793 | J29: =Tabelle1[Std]*Tabelle1[MSatz] -> 251.505 | K29: =Tabelle1[LKosten]+Tabelle1[MKosten] -> 803.298
A30: C | B30: 6 | C30: 18 | D30: 6.7 | E30: 27.53 | F30: 14 | G30: 1 | H30: =VLOOKUP(Personalkosten!$F30&Personalkosten!$G30,CHOOSE({1,2},Maschinen[MNr]&Maschinen[WNr],Maschinen[Stundensatz]),2,0) -> 53.4 | I30: =Tabelle1[Std]*Tabelle1[Lohn] -> 184.451 | J30: =Tabelle1[Std]*Tabelle1[MSatz] -> 357.78 | K30: =Tabelle1[LKosten]+Tabelle1[MKosten] -> 542.231
A31: C | B31: 7 | C31: 0 | D31: 11.3 | E31: 70.7 | F31: 3 | G31: 1 | H31: =VLOOKUP(Personalkosten!$F31&Personalkosten!$G31,CHOOSE({1,2},Maschinen[MNr]&Maschinen[WNr],Maschinen[Stundensatz]),2,0) -> 69.87 | I31: =Tabelle1[Std]*Tabelle1[Lohn] -> 798.91 | J31: =Tabelle1[Std]*Tabelle1[MSatz] -> 789.531 | K31: =Tabelle1[LKosten]+Tabelle1[MKosten] -> 1588.441
A32: C | B32: 8 | C32: 13 | D32: 11.3 | E32: 87.97 | F32: 12 | G32: 2 | H32: =VLOOKUP(Personalkosten!$F32&Personalkosten!$G32,CHOOSE({1,2},Maschinen[MNr]&Maschinen[WNr],Maschinen[Stundensatz]),2,0) -> 45.87 | I32: =Tabelle1[Std]*Tabelle1[Lohn] -> 994.061 | J32: =Tabelle1[Std]*Tabelle1[MSatz] -> 518.331 | K32: =Tabelle1[LKosten]+Tabelle1[MKosten] -> 1512.392
A33: C | B33: 9 | C33: 8 | D33: 4.7 | E33: 28.97 | F33: 18 | G33: 1 | H33: =VLOOKUP(Personalkosten!$F33&Personalkosten!$G33,CHOOSE({1,2},Maschinen[MNr]&Maschinen[WNr],Maschinen[Stundensatz]),2,0) -> 62.29 | I33: =Tabelle1[Std]*Tabelle1[Lohn] -> 136.159 | J33: =Tabelle1[Std]*Tabelle1[MSatz] -> 292.763 | K33: =Tabelle1[LKosten]+Tabelle1[MKosten] -> 428.922
A34: C | B34: 10 | C34: 4 | D34: 11.9 | E34: 58.61 | F34: 13 | G34: 2 | H34: =VLOOKUP(Personalkosten!$F34&Personalkosten!$G34,CHOOSE({1,2},Maschinen[MNr]&Maschinen[WNr],Maschinen[Stundensatz]),2,0) -> 53.21 | I34: =Tabelle1[Std]*Tabelle1[Lohn] -> 697.459 | J34: =Tabelle1[Std]*Tabelle1[MSatz] -> 633.199 | K34: =Tabelle1[LKosten]+Tabelle1[MKosten] -> 1330.658
A35: C | B35: 11 | C35: 6 | D35: 2.6 | E35: 21.31 | F35: 16 | G35: 2 | H35: =VLOOKUP(Personalkosten!$F35&Personalkosten!$G35,CHOOSE({1,2},Maschinen[MNr]&Maschinen[WNr],Maschinen[Stundensatz]),2,0) -> 31.27 | I35: =Tabelle1[Std]*Tabelle1[Lohn] -> 55.406 | J35: =Tabelle1[Std]*Tabelle1[MSatz] -> 81.302 | K35: =Tabelle1[LKosten]+Tabelle1[MKosten] -> 136.708
A36: D | B36: 1 | C36: 1 | D36: 4.8 | E36: 19.5 | F36: 1 | G36: 1 | H36: =VLOOKUP(Personalkosten!$F36&Personalkosten!$G36,CHOOSE({1,2},Maschinen[MNr]&Maschinen[WNr],Maschinen[Stundensatz]),2,0) -> 31.25 | I36: =Tabelle1[Std]*Tabelle1[Lohn] -> 93.6 | J36: =Tabelle1[Std]*Tabelle1[MSatz] -> 150 | K36: =Tabelle1[LKosten]+Tabelle1[MKosten] -> 243.6
A37: D | B37: 2 | C37: 2 | D37: 5 | E37: 12.95 | F37: 15 | G37: 1 | H37: =VLOOKUP(Personalkosten!$F37&Personalkosten!$G37,CHOOSE({1,2},Maschinen[MNr]&Maschinen[WNr],Maschinen[Stundensatz]),2,0) -> 50.73 | I37: =Tabelle1[Std]*Tabelle1[Lohn] -> 64.75 | J37: =Tabelle1[Std]*Tabelle1[MSatz] -> 253.65 | K37: =Tabelle1[LKosten]+Tabelle1[MKosten] -> 318.4
A38: D | B38: 3 | C38: 1 | D38: 18.2 | E38: 99.01 | F38: 6 | G38: 1 | H38: =VLOOKUP(Personalkosten!$F38&Personalkosten!$G38,CHOOSE({1,2},Maschinen[MNr]&Maschinen[WNr],Maschinen[Stundensatz]),2,0) -> 41.28 | I38: =Tabelle1[Std]*Tabelle1[Lohn] -> 1801.982 | J38: =Tabelle1[Std]*Tabelle1[MSatz] -> 751.296 | K38: =Tabelle1[LKosten]+Tabelle1[MKosten] -> 2553.278
A39: D | B39: 4 | C39: 18 | D39: 9 | E39: 57.26 | F39: 13 | G39: 2 | H39: =VLOOKUP(Personalkosten!$F39&Personalkosten!$G39,CHOOSE({1,2},Maschinen[MNr]&Maschinen[WNr],Maschinen[Stundensatz]),2,0) -> 53.21 | I39: =Tabelle1[Std]*Tabelle1[Lohn] -> 515.34 | J39: =Tabelle1[Std]*Tabelle1[MSatz] -> 478.89 | K39: =Tabelle1[LKosten]+Tabelle1[MKosten] -> 994.23
A40: D | B40: 5 | C40: 3 | D40: 11.3 | E40: 57.83 | F40: 18 | G40: 1 | H40: =VLOOKUP(Personalkosten!$F40&Personalkosten!$G40,CHOOSE({1,2},Maschinen[MNr]&Maschinen[WNr],Maschinen[Stundensatz]),2,0) -> 62.29 | I40: =Tabelle1[Std]*Tabelle1[Lohn] -> 653.479 | J40: =Tabelle1[Std]*Tabelle1[MSatz] -> 703.877 | K40: =Tabelle1[LKosten]+Tabelle1[MKosten] -> 1357.356
A41: D | B41: 6 | C41: 11 | D41: 10.5 | E41: 5.8 | F41: 8 | G41: 2 | H41: =VLOOKUP(Personalkosten!$F41&Personalkosten!$G41,CHOOSE({1,2},Maschinen[MNr]&Maschinen[WNr],Maschinen[Stundensatz]),2,0) -> 59.83 | I41: =Tabelle1[Std]*Tabelle1[Lohn] -> 60.9 | J41: =Tabelle1[Std]*Tabelle1[MSatz] -> 628.215 | K41: =Tabelle1[LKosten]+Tabelle1[MKosten] -> 689.115
A42: E | B42: 1 | C42: 15 | D42: 12.6 | E42: 59.56 | F42: 1 | G42: 2 | H42: =VLOOKUP(Personalkosten!$F42&Personalkosten!$G42,CHOOSE({1,2},Maschinen[MNr]&Maschinen[WNr],Maschinen[Stundensatz]),2,0) -> 33.52 | I42: =Tabelle1[Std]*Tabelle1[Lohn] -> 750.456 | J42: =Tabelle1[Std]*Tabelle1[MSatz] -> 422.352 | K42: =Tabelle1[LKosten]+Tabelle1[MKosten] -> 1172.808
A43: E | B43: 2 | C43: 4 | D43: 3.1 | E43: 71 | F43: 2 | G43: 1 | H43: =VLOOKUP(Personalkosten!$F43&Personalkosten!$G43,CHOOSE({1,2},Maschinen[MNr]&Maschinen[WNr],Maschinen[Stundensatz]),2,0) -> 45.77 | I43: =Tabelle1[Std]*Tabelle1[Lohn] -> 220.1 | J43: =Tabelle1[Std]*Tabelle1[MSatz] -> 141.887 | K43: =Tabelle1[LKosten]+Tabelle1[MKosten] -> 361.987
A44: E | B44: 3 | C44: 15 | D44: 19.2 | E44: 78.84 | F44: 19 | G44: 2 | H44: =VLOOKUP(Personalkosten!$F44&Personalkosten!$G44,CHOOSE({1,2},Maschinen[MNr]&Maschinen[WNr],Maschinen[Stundensatz]),2,0) -> 53.12 | I44: =Tabelle1[Std]*Tabelle1[Lohn] -> 1513.728 | J44: =Tabelle1[Std]*Tabelle1[MSatz] -> 1019.904 | K44: =Tabelle1[LKosten]+Tabelle1[MKosten] -> 2533.632
A45: E | B45: 4 | C45: 20 | D45: 6.5 | E45: 50.5 | F45: 12 | G45: 2 | H45: =VLOOKUP(Personalkosten!$F45&Personalkosten!$G45,CHOOSE({1,2},Maschinen[MNr]&Maschinen[WNr],Maschinen[Stundensatz]),2,0) -> 45.87 | I45: =Tabelle1[Std]*Tabelle1[Lohn] -> 328.25 | J45: =Tabelle1[Std]*Tabelle1[MSatz] -> 298.155 | K45: =Tabelle1[LKosten]+Tabelle1[MKosten] -> 626.405
A46: E | B46: 5 | C46: 0 | D46: 0.8 | E46: 40.62 | F46: 15 | G46: 2 | H46: =VLOOKUP(Personalkosten!$F46&Personalkosten!$G46,CHOOSE({1,2},Maschinen[MNr]&Maschinen[WNr],Maschinen[Stundensatz]),2,0) -> 49.88 | I46: =Tabelle1[Std]*Tabelle1[Lohn] -> 32.496 | J46: =Tabelle1[Std]*Tabelle1[MSatz] -> 39.904 | K46: =Tabelle1[LKosten]+Tabelle1[MKosten] -> 72.4
A47: E | B47: 6 | C47: 11 | D47: 12.8 | E47: 79.03 | F47: 2 | G47: 1 | H47: =VLOOKUP(Personalkosten!$F47&Personalkosten!$G47,CHOOSE({1,2},Maschinen[MNr]&Maschinen[WNr],Maschinen[Stundensatz]),2,0) -> 45.77 | I47: =Tabelle1[Std]*Tabelle1[Lohn] -> 1011.584 | J47: =Tabelle1[Std]*Tabelle1[MSatz] -> 585.856 | K47: =Tabelle1[LKosten]+Tabelle1[MKosten] -> 1597.44
A48: E | B48: 7 | C48: 9 | D48: 15.1 | E48: 44.28 | F48: 13 | G48: 1 | H48: =VLOOKUP(Personalkosten!$F48&Personalkosten!$G48,CHOOSE({1,2},Maschinen[MNr]&Maschinen[WNr],Maschinen[Stundensatz]),2,0) -> 53.76 | I48: =Tabelle1[Std]*Tabelle1[Lohn] -> 668.628 | J48: =Tabelle1[Std]*Tabelle1[MSatz] -> 811.776 | K48: =Tabelle1[LKosten]+Tabelle1[MKosten] -> 1480.404
A49: E | B49: 8 | C49: 6 | D49: 9.3 | E49: 29.42 | F49: 20 | G49: 2 | H49: =VLOOKUP(Personalkosten!$F49&Personalkosten!$G49,CHOOSE({1,2},Maschinen[MNr]&Maschinen[WNr],Maschinen[Stundensatz]),2,0) -> 43.78 | I49: =Tabelle1[Std]*Tabelle1[Lohn] -> 273.606 | J49: =Tabelle1[Std]*Tabelle1[MSatz] -> 407.154 | K49: =Tabelle1[LKosten]+Tabelle1[MKosten] -> 680.76
A50: E | B50: 9 | C50: 12 | D50: 16 | E50: 93.79 | F50: 12 | G50: 2 | H50: =VLOOKUP(Personalkosten!$F50&Personalkosten!$G50,CHOOSE({1,2},Maschinen[MNr]&Maschinen[WNr],Maschinen[Stundensatz]),2,0) -> 45.87 | I50: =Tabelle1[Std]*Tabelle1[Lohn] -> 1500.64 | J50: =Tabelle1[Std]*Tabelle1[MSatz] -> 733.92 | K50: =Tabelle1[LKosten]+Tabelle1[MKosten] -> 2234.56
A51: E | B51: 10 | C51: 9 | D51: 6.9 | E51: 22.3 | F51: 11 | G51: 1 | H51: =VLOOKUP(Personalkosten!$F51&Personalkosten!$G51,CHOOSE({1,2},Maschinen[MNr]&Maschinen[WNr],Maschinen[Stundensatz]),2,0) -> 30.73 | I51: =Tabelle1[Std]*Tabelle1[Lohn] -> 153.87 | J51: =Tabelle1[Std]*Tabelle1[MSatz] -> 212.037 | K51: =Tabelle1[LKosten]+Tabelle1[MKosten] -> 365.907
A52: E | B52: 11 | C52: 6 | D52: 5.7 | E52: 49.37 | F52: 20 | G52: 1 | H52: =VLOOKUP(Personalkosten!$F52&Personalkosten!$G52,CHOOSE({1,2},Maschinen[MNr]&Maschinen[WNr],Maschinen[Stundensatz]),2,0) -> 44.28 | I52: =Tabelle1[Std]*Tabelle1[Lohn] -> 281.409 | J52: =Tabelle1[Std]*Tabelle1[MSatz] -> 252.396 | K52: =Tabelle1[LKosten]+Tabelle1[MKosten] -> 533.805

Sheet Tabelle1 (hidden)
A1: Matrix | E1: Σ | F1: Formel
A2: 1 | B2: 3 | C2: 5 | E2: =SUM(A2:C4) -> 45 | F2: =SUMME(A2:C4)
A3: 2 | B3: 4 | C3: 6 | E3: =SUM(1,3,5,2,4,6,7,9,8) -> 45 | F3: =SUMME(1;3;5;2;4;6;7;9;8)
A4: 7 | B4: 9 | C4: 8 | E4: =SUM({1,3,5;2,4,6;7,9,8}) -> 45 | F4: =SUMME({1.3.5;2.4.6;7.9.8})

Sheet Maschinenkosten
A1: MNr | B1: WNr | C1: Stundensatz
A2: 1 | B2: 1 | C2: 31.25
A3: 1 | B3: 2 | C3: 33.52
A4: 2 | B4: 1 | C4: 45.77
A5: 2 | B5: 2 | C5: 44.64
A6: 3 | B6: 1 | C6: 69.87
A7: 3 | B7: 2 | C7: 71.23
A8: 4 | B8: 1 | C8: 55.26
A9: 4 | B9: 2 | C9: 53.22
A10: 5 | B10: 1 | C10: 39.96
A11: 5 | B11: 2 | C11: 36.45
A12: 6 | B12: 1 | C12: 41.28
A13: 6 | B13: 2 | C13: 43.28
A14: 7 | B14: 1 | C14: 21.42
A15: 7 | B15: 2 | C15: 24.38
A16: 8 | B16: 1 | C16: 67.34
A17: 8 | B17: 2 | C17: 59.83
A18: 9 | B18: 1 | C18: 58.17
A19: 9 | B19: 2 | C19: 55.76
A20: 10 | B20: 1 | C20: 53.98
A21: 10 | B21: 2 | C21: 54.87
A22: 11 | B22: 1 | C22: 30.73
A23: 11 | B23: 2 | C23: 34.56
A24: 12 | B24: 1 | C24: 43.09
A25: 12 | B25: 2 | C25: 45.87
A26: 13 | B26: 1 | C26: 53.76
A27: 13 | B27: 2 | C27: 53.21
A28: 14 | B28: 1 | C28: 53.4
A29: 14 | B29: 2 | C29: 55.79
A30: 15 | B30: 1 | C30: 50.73
A31: 15 | B31: 2 | C31: 49.88
A32: 16 | B32: 1 | C32: 30.78
A33: 16 | B33: 2 | C33: 31.27
A34: 17 | B34: 1 | C34: 33.87
A35: 17 | B35: 2 | C35: 31.29
A36: 18 | B36: 1 | C36: 62.29
A37: 18 | B37: 2 | C37: 60.56
A38: 19 | B38: 1 | C38: 51.47
A39: 19 | B39: 2 | C39: 53.12
A40: 20 | B40: 1 | C40: 44.28
A41: 20 | B41: 2 | C41: 43.78
